Cogmind - Beta 17 @@@ ROGUE MODE // 2026.07.28 @ 22:15:17 Player: kite Result: Self-destructed Performance ------------- Evolutions (3) 1500 Regions Visited (7) 1400 Robots Destroyed (26) 130 Value Destroyed (1115) 1115 Prototype IDs (23) 460 Alien Tech Used (0) 0 Bonus (562) 562 TOTAL SCORE: 5167 Bonus ------- Follower Combat Kills 62 Entered Garrisons 200 Aligned with FarCom 300 Cogmind --------- Core Integrity 700/700 Matter 263/300 Energy 100/100 System Corruption 0% Temperature Cool (0) Movement Walking (400) Ox4 Location -7/Factory Parts ------- > --- POWER (1) -------- (None) > --- PROPULSION (6) --- Improved Treads Improved Treads Aluminum Leg Aluminum Leg > --- UTILITY (3) ------ Improved Heat Sink Huge Storage Unit Hardened Light Armor Plating > --- WEAPON (3) ------- Small Laser Rocket Launcher Mini Grenade Launcher > --- INVENTORY (25) --- Improved Ion Engine Light Nuclear Core Improved Treads Improved Treads Aluminum Leg Heat Sink Large Storage Unit Large Matter Pod (150) Modified TNC Core Shielding Hardened Light Armor Plating Hardened Light Armor Plating Particle Gun Guided Plasma Cannon Firepult Mini Grenade Launcher Peak State ------------ > --- POWER ------------ Improved Ion Engine > --- PROPULSION ------- Light Treads Improved Treads Improved Treads Advanced Treads > --- UTILITY ---------- Improved Heat Sink Huge Storage Unit Hardened Light Armor Plating > --- WEAPON ----------- Small Laser Small Laser Mini Grenade Launcher > --- INVENTORY -------- Improved Ion Engine Light Nuclear Core Improved Treads Improved Treads Aluminum Leg Aluminum Leg Heat Sink Large Storage Unit Large Matter Pod Modified TNC Core Shielding Hardened Light Armor Plating Hardened Light Armor Plating Small Laser Particle Gun Guided Plasma Cannon Firepult Rocket Launcher Mini Grenade Launcher [Rating: 26] Favorites ----------- Power Improved Ion Engine Engine Improved Ion Engine Propulsion Light Treads Treads Light Treads Leg Aluminum Leg Utility Heat Sink Device Heat Sink Storage Huge Storage Unit Protection Hardened Light Armor Plating Weapon Small Laser Energy Gun Small Laser Ballistic Gun Assault Rifle Launcher Mini Grenade Launcher Build | -11 -10 -10 -10 -9 -8 -8 -7 ------- Run | Yrd Mat Min Exi Min Mat Gar Fac Slots Evolved 6 | . . . . . 4 . 2 Power . | . . . . . . . . Propulsion 4 | . . . . . 2 . 2 Utility 1 | . . . . . 1 . . Weapon 1 | . . . . . 1 . . Parts Attached 28 | 6 7 . 2 . 6 7 . Power 2 | 1 1 . . . . . . Engine 2 | 1 1 . . . . . . Core . | . . . . . . . . Reactor . | . . . . . . . . Propulsion 10 | 2 . . . . 3 5 . Treads 7 | 2 . . . . 3 2 . Leg 3 | . . . . . . 3 . Wheel . | . . . . . . . . Hover . | . . . . . . . . Flight . | . . . . . . . . Utility 7 | 1 3 . 1 . 2 . . Device 2 | . 1 . . . 1 . . Storage 3 | 1 1 . 1 . . . . Processor . | . . . . . . . . Hackware . | . . . . . . . . Protection 2 | . 1 . . . 1 . . Artifact . | . . . . . . . . Weapon 9 | 2 3 . 1 . 1 2 . Energy Gun 5 | . 3 . 1 . 1 . . Energy Cannon . | . . . . . . . . Ballistic Gun 2 | 2 . . . . . . . Ballistic Cannon . | . . . . . . . . Launcher 2 | . . . . . . 2 . Special Weapon . | . . . . . . . . Impact Weapon . | . . . . . . . . Slashing Weapon . | . . . . . . . . Piercing Weapon . | . . . . . . . . Special Melee Weapon . | . . . . . . . . Unidentified Prototypes . | . . . . . . . . Parts Lost 8 | . . . . . 3 5 . Power 1 | . . . . . . 1 . Propulsion 4 | . . . . . 2 2 . Utility . | . . . . . . . . Weapon 3 | . . . . . 1 2 . Highest Loss Streak 4 | . . . . . 3 4 . To Critical Strikes . | . . . . . . . . Average Backups 13 | . 7 15 16 18 16 16 . Power 1 | . 1 1 1 1 1 1 . Propulsion 3 | . 1 5 5 5 4 3 . Utility 5 | . 3 5 5 7 6 7 . Weapon 4 | . 2 4 4 5 5 4 . Tool/Special . | . . . . . . . . Unused Backups 19 | . 7 . . . . . 12 Power 3 | . 1 . . . . . 2 Propulsion 1 | . . . . . . . 1 Utility 9 | . 4 . . . . . 5 Weapon 6 | . 2 . . . . . 4 Tool/Special . | . . . . . . . . Average Slot Usage (%) 97 | . 99 100 100 100 90 95 . Engine 11 | . 14 14 14 14 9 5 . Treads 28 | . 28 28 28 28 30 27 . Leg 1 | . . . . . . 7 . Device 10 | . 7 14 14 14 9 9 . Storage 12 | . 15 14 14 14 9 9 . Protection 3 | . 4 . . . 6 9 . Energy Gun 22 | . 16 28 28 28 25 17 . Ballistic Gun 2 | . 11 . . . . . . Launcher 2 | . . . . . . 9 . Peak Build Rating 26 | 6 11 11 14 15 24 26 . Average Rating 14 | 4 8 11 13 14 20 23 . On Entrance 12 | . 6 11 11 14 15 23 22 Avg Prop Armor Cover (%) 13 | . . . . . . 13 . Naked Turns . | . . . . . . . . Heaviest Build 99 | 12 32 32 92 92 98 99 . Greatest Support 88 | 40 40 40 40 40 88 88 . Greatest Overweight (x) 4 | . . . 2 2 2 4 . Average Overweight (x) . | . . . 1 2 1 2 . Largest Inventory Capacity 25 | 8 15 15 25 25 25 25 . Average Capacity 20 | 6 14 15 21 25 25 25 . Most Carried 20 | 2 15 15 19 20 20 20 . Average Carried 14 | . 7 15 17 19 17 18 . Final Capacity 25 | 8 15 15 25 25 25 25 25 Final Carried 20 | 2 15 15 19 20 17 17 17 Class Distribution -------------------- 66% | Mutant 33% | Scavenger-Skirmisher Dominant Class ---------------- Mutant | -10/Materials Mutant | -10/Mines Mutant | -10/Exiles Mutant | -9/Mines Scavenger-Skirmisher | -8/Materials Scavenger-Skirmisher | -8/Garrison Scavenger-Skirmisher | -7/Factory Resources | -11 -10 -10 -10 -9 -8 -8 -7 ----------- Run | Yrd Mat Min Exi Min Mat Gar Fac Matter Collected 745 | 204 218 10 30 . 90 193 . Remotely . | . . . . . . . . Salvage Created 923 | . 431 44 . . 122 326 . Parts 48 | . 23 6 . . 4 15 . Haulers Intercepted 1 | . 1 . . . . . . Recyclers Shooed 1 | . 1 . . . . . . Parts Field Recycled . | . . . . . . . . Retrieved Matter . | . . . . . . . . Parts Self-Destructed . | . . . . . . . . Prevented . | . . . . . . . . Parts Restored . | . . . . . . . . Kills | -11 -10 -10 -10 -9 -8 -8 -7 ------- Run | Yrd Mat Min Exi Min Mat Gar Fac Combat Hostiles Destroyed 20 | . 8 . . . 3 9 . Melee 1 | . . . . . 1 . . Guns 14 | . 8 . . . 2 4 . AOE 5 | . . . . . . 5 . Classes Destroyed 6 | . 4 1 . . 1 . . Worker 1 | . . . . . 1 . . Tunneler 2 | . . 2 . . . . . Hauler 1 | . 1 . . . . . . Mechanic 1 | . 1 . . . . . . Watcher 1 | . 1 . . . . . . Grunt 20 | . 8 . . . 3 9 . Best Kill Streak 4 | . 3 2 . . 3 4 . Combat Bots Only 4 | . 3 . . . 3 4 . Max Kills in Single Turn 2 | . 1 1 . . 1 2 . Gunslinging . | . . . . . . . . Exploded 2 | . . . . . . 2 . Melee 1 | . . . . . 1 . . Uniques/NPCs Destroyed . | . . . . . . . . Combat | -11 -10 -10 -10 -9 -8 -8 -7 -------- Run | Yrd Mat Min Exi Min Mat Gar Fac Hostile Shots Fired 175 | . 38 . . . 80 57 . Missed 54 | . 12 . . . 27 15 . Hits 121 | . 26 . . . 53 42 . Projectile 121 | . 26 . . . 53 42 . Critical Strikes 4 | . . . . . 1 3 . Damage Taken 1608 | . 309 . . . 607 692 . Core 203 | . 50 . . . 61 92 . Absorbed by Shields . | . . . . . . . . Core Remaining (%) 84 | 100 . . . 80 . 72 . Volleys Fired 80 | . 37 3 . . 9 31 . Largest 3 | . 2 2 . . 3 3 . Hottest 145 | . 105 105 . . 145 120 . Shots Fired 176 | . 74 6 . . 27 69 . Gun 162 | . 74 6 . . 27 55 . Cannon . | . . . . . . . . Launcher 14 | . . . . . . 14 . Special . | . . . . . . . . Kinetic 34 | . 34 . . . . . . Thermal 128 | . 40 6 . . 27 55 . Explosive 14 | . . . . . . 14 . Electromagnetic . | . . . . . . . . Robot Hit Streak 15 | . 6 7 . . 12 15 . Robot Miss Streak 3 | . 2 . . . 2 3 . Penetration Max . | . . . . . . . . Secondary Targets 4 | . 2 . . . 1 1 . Max Gunslinging Chain 1 | . 1 . . . 1 1 . Shots Hit Robots 115 | . 49 2 . . 22 42 . Core Hits 53 | . 22 2 . . 7 22 . Critical Kills . | . . . . . . . . Critical Parts Destroyed . | . . . . . . . . Critical Strikes . | . . . . . . . . Melee Attacks . | . . . . . . . . Impact . | . . . . . . . . Slashing . | . . . . . . . . Piercing . | . . . . . . . . Sneak Attacks . | . . . . . . . . Combat Hostiles . | . . . . . . . . Follow-up Attacks . | . . . . . . . . Damage Inflicted 1999 | . 626 22 . . 279 1072 . Guns 1310 | . 626 22 . . 274 388 . Cannons . | . . . . . . . . Explosions 684 | . . . . . . 684 . Melee . | . . . . . . . . Ramming 5 | . . . . . 5 . . Kinetic 292 | . 292 . . . . . . Thermal 1018 | . 334 22 . . 274 388 . Explosive 684 | . . . . . . 684 . Electromagnetic . | . . . . . . . . Impact . | . . . . . . . . Slashing . | . . . . . . . . Piercing . | . . . . . . . . Highest Corruption . | . . . . . . . . Average Corruption . | . . . . . . . . Corruption Purged . | . . . . . . . . Corruption Blocked . | . . . . . . . . Overload Shots . | . . . . . . . . Overflow Damage 16 | . . . . . . 16 . Projectiles . | . . . . . . . . Explosions 16 | . . . . . . 16 . Melee . | . . . . . . . . Knockbacks . | . . . . . . . . Impact . | . . . . . . . . Kinetic . | . . . . . . . . Secondary . | . . . . . . . . Self-Inflicted Damage 47 | . . . . . . 47 . Shots 2 | . . . . . . 2 . Rammed 1 | . . . . . 1 . . Targets Rammed 2 | . . . . . 2 . . Kicked . | . . . . . . . . Crushed 1 | . . . . . 1 . . Highest Temperature 258 | . 111 18 . . 258 164 . Average Temperature 55 | . 33 12 . . 81 63 . Received Heat Transfer 816 | . 168 . . . 216 432 . Siege Activations . | . . . . . . . . Martial Activations . | . . . . . . . . Shielding Activations . | . . . . . . . . Robots Disrupted . | . . . . . . . . Combat Hostiles . | . . . . . . . . Robots Corrupted . | . . . . . . . . Combat Hostiles . | . . . . . . . . Parts Fried . | . . . . . . . . Impact Corruptions . | . . . . . . . . Robots Melted . | . . . . . . . . Combat Hostiles . | . . . . . . . . Parts Melted 2 | . 1 . . . 1 . . Heat Transferred 2343 | . 784 50 . . 634 875 . Parts Sabotaged . | . . . . . . . . Parts Stolen . | . . . . . . . . Parts Stripped . | . . . . . . . . Power Chain Reactions . | . . . . . . . . Alert | -11 -10 -10 -10 -9 -8 -8 -7 ------- Run | Yrd Mat Min Exi Min Mat Gar Fac Maximum Alert Level 1 | . . . . . . 1 . Low Security (%) 88 | 100 100 100 . 100 100 62 . Level 1 11 | . . . . . . 37 . Level 2 . | . . . . . . . . Level 3 . | . . . . . . . . Level 4 . | . . . . . . . . Level 5 . | . . . . . . . . High Security . | . . . . . . . . Max Security . | . . . . . . . . Peak Influence 304 | . 60 5 . . 69 304 . Initial 159 | . . . . . . 19 159 Average 64 | . 17 . . . 34 176 . Influence Increases 765 | . 216 10 . . 204 335 . Destroy 0b10 Robot/C 480 | . 160 . . . 140 180 . Destroy 0b10 Robot/NC 30 | . 15 10 . . 5 . . Destroy Leader 64 | . 34 . . . 30 . . Allied During Kill 14 | . . . . . 14 . . Successful Hack 7 | . 7 . . . . . . Disable Machine 30 | . . . . . 15 15 . Anti-Garrison Action 50 | . . . . . . 50 . Destroy Structure 45 | . . . . . . 45 . Lose Combat Pursuer 45 | . . . . . . 45 . Influence Decreases 606 | . 216 10 . . 174 61 145 Entered New Map 156 | . . . . . . 11 145 Time Decay 346 | . 216 10 . . 120 . . Lost Part 80 | . . . . . 30 50 . Lost Ally 24 | . . . . . 24 . . Squads Dispatched 6 | . 3 . . . 3 . . Investigation 2 | . 1 . . . 1 . . Extermination . | . . . . . . . . Reinforcement 3 | . 2 . . . 1 . . Assault . | . . . . . . . . Garrison 1 | . . . . . 1 . . Intercept . | . . . . . . . . Searches Triggered . | . . . . . . . . Construction Impeded . | . . . . . . . . Haulers Reinforced . | . . . . . . . . Active Scanning Responses . | . . . . . . . . Cargo Convoy Interrupts . | . . . . . . . . Stealth | -11 -10 -10 -10 -9 -8 -8 -7 --------- Run | Yrd Mat Min Exi Min Mat Gar Fac Distress Signals 3 | . . . . . 3 . . Communications Jammed . | . . . . . . . . Distress Signals . | . . . . . . . . Times Spotted 41 | . 12 . . . 16 13 . Peak Tracking Total 7 | . 3 . . . 7 5 . Tactical Retreats 3 | . . . . . . 3 . Traps | -11 -10 -10 -10 -9 -8 -8 -7 ------- Run | Yrd Mat Min Exi Min Mat Gar Fac Traps Triggered . | . . . . . . . . Indirectly . | . . . . . . . . Trap Hack Attempts . | . . . . . . . . Triggered . | . . . . . . . . Disarmed . | . . . . . . . . Reprogrammed . | . . . . . . . . Reused . | . . . . . . . . Traps Extracted . | . . . . . . . . Installed . | . . . . . . . . Triggered . | . . . . . . . . Machines | -11 -10 -10 -10 -9 -8 -8 -7 ---------- Run | Yrd Mat Min Exi Min Mat Gar Fac Machines Disabled 3 | . . . . . 1 2 . Max in Single Turn 1 | . . . . . . 1 . Garrison Relay 1 | . . . . . . 1 . Machines Repaired . | . . . . . . . . Machines Dismantled . | . . . . . . . . Machines Sabotaged . | . . . . . . . . Overloaded Fab Kills . | . . . . . . . . Hacking | -11 -10 -10 -10 -9 -8 -8 -7 --------- Run | Yrd Mat Min Exi Min Mat Gar Fac Machines Accessed 5 | . 1 . 2 . 2 . . Terminals 2 | . 1 . . . 1 . . Fabricators . | . . . . . . . . Repair Stations . | . . . . . . . . Recycling Units . | . . . . . . . . Scanalyzers . | . . . . . . . . Garrison Access 1 | . . . . . 1 . . Total Hacks 10 | . 2 . 5 . 3 . . Successful 7 | . 1 . 5 . 1 . . Failed 3 | . 1 . . . 2 . . Catastrophic . | . . . . . . . . Database Lockouts . | . . . . . . . . Manual 5 | . 2 . 1 . 2 . . Terminals 4 | . 2 . . . 2 . . Fabricators . | . . . . . . . . Repair Stations . | . . . . . . . . Recycling Units . | . . . . . . . . Scanalyzers . | . . . . . . . . Garrison Access 1 | . . . . . 1 . . Terminal Hacks 6 | . 1 . 5 . . . . Record 4 | . . . 4 . . . . Part Schematic 1 | . 1 . . . . . . Proto ID Catalog 1 | . . . 1 . . . . Fabricator Hacks . | . . . . . . . . Repair Station Hacks . | . . . . . . . . Recycling Unit Hacks . | . . . . . . . . Scanalyzer . | . . . . . . . . Garrison Access Hacks 1 | . . . . . 1 . . Unlock Access 1 | . . . . . 1 . . Unauthorized Hacks . | . . . . . . . . Terminals . | . . . . . . . . Fabricators . | . . . . . . . . Repair Stations . | . . . . . . . . Recycling Units . | . . . . . . . . Scanalyzers . | . . . . . . . . Garrison Access . | . . . . . . . . Data Cores Recovered . | . . . . . . . . Used . | . . . . . . . . Hacking Detections 2 | . 1 . . . 1 . . Full Trace Events 1 | . . . . . 1 . . Feedback Events . | . . . . . . . . Feedback Blocked . | . . . . . . . . Robot Schematics Acquired . | . . . . . . . . Robots Built . | . . . . . . . . Authchips . | . . . . . . . . Time . | . . . . . . . . Total Robot Build Rating . | . . . . . . . . Part Schematics Acquired 1 | . 1 . . . . . . Parts Built . | . . . . . . . . Authchips . | . . . . . . . . Time . | . . . . . . . . Total Part Build Rating . | . . . . . . . . Part Studies Acquired . | . . . . . . . . Parts Repaired . | . . . . . . . . Time . | . . . . . . . . Parts Recycled . | . . . . . . . . Recycled Matter . | . . . . . . . . Retrieved Matter . | . . . . . . . . Retrieved Components . | . . . . . . . . Parts Scanalyzed . | . . . . . . . . Part Schematics Acquired . | . . . . . . . . Parts Damaged . | . . . . . . . . Bothacking | -11 -10 -10 -10 -9 -8 -8 -7 ------------ Run | Yrd Mat Min Exi Min Mat Gar Fac Used RIF Installer . | . . . . . . . . Robots Hacked . | . . . . . . . . Non-combat . | . . . . . . . . Combat . | . . . . . . . . Robot Hacks Applied . | . . . . . . . . Relay Couplers Released 3 | . . . . . . 3 . Machine Destruction 3 | . . . . . . 3 . Fabnet Peak Effective % . | . . . . . . . . Robots Rewired . | . . . . . . . . Allies Hacked . | . . . . . . . . Hacks Repelled . | . . . . . . . . Allies | -11 -10 -10 -10 -9 -8 -8 -7 -------- Run | Yrd Mat Min Exi Min Mat Gar Fac Total Allies 3 | . . 3 . . . . . Largest Group 3 | . . 3 3 3 3 . . Highest-Rated Group 40 | . . 40 40 40 40 . . Highest-Rated Ally 16 | . . 16 16 16 16 . . Initial Warlord ECA Mod 2 | . . . . . . . 2 Total Orders . | . . . . . . . . Ally Attacks 27 | . . . . . 27 . . Total Damage 347 | . . . . . 347 . . Kills 4 | . . . . . 4 . . Allies Corrupted . | . . . . . . . . Allies Melted . | . . . . . . . . Intel | -11 -10 -10 -10 -9 -8 -8 -7 ------- Run | Yrd Mat Min Exi Min Mat Gar Fac Active Infowar (turns) . | . . . . . . . . Robot Analysis Total . | . . . . . . . . Derelict Logs Recovered 1 | . . 1 . . . . . Drone Launches . | . . . . . . . . Drone Recoveries . | . . . . . . . . Exploration | -11 -10 -10 -10 -9 -8 -8 -7 ------------- Run | Yrd Mat Min Exi Min Mat Gar Fac Turns Passed 2875 | 70 701 369 633 120 283 699 . Spaces Moved 1173 | 39 331 224 254 38 93 194 . Core 2 | 2 . . . . . . . Treads 1097 | 37 331 224 254 38 93 120 . Legs 74 | . . . . . . 74 . Wheels . | . . . . . . . . Hover . | . . . . . . . . Flight . | . . . . . . . . Fastest Speed 50 | 50 160 160 160 320 235 235 . Average Speed 213 | 154 160 160 245 320 253 298 . Slowest Speed 400 | 160 160 160 320 320 320 400 . Overloaded Moves . | . . . . . . . . Propulsion Burnouts . | . . . . . . . . Robots Hopped . | . . . . . . . . Potential Cave-ins . | . . . . . . . . Cave-ins Triggered . | . . . . . . . . Exploration Rate (%) 35 | 3 57 68 60 12 17 28 . Regions Visited 7 Branch Regions 3 Pre-discovered Areas 1 | . . . 1 . . . . Known Exits Taken 1 | . . . . . 1 . . Unknown Exits Taken 5 | 1 1 1 1 1 . . . Scrap Searched 1 | . . 1 . . . . . Spaces Dug . | . . . . . . . . Terrain Destroyed 57 | . . . . . . 57 . Melee . | . . . . . . . . Projectile . | . . . . . . . . AOE 57 | . . . . . . 57 . Terrain Rammed . | . . . . . . . . Walls Destroyed . | . . . . . . . . Machines Disabled . | . . . . . . . . Actions | -11 -10 -10 -10 -9 -8 -8 -7 --------- Run | Yrd Mat Min Exi Min Mat Gar Fac Total 1385 | 46 434 229 264 38 116 258 . Wait 55 | . 25 3 1 . 5 21 . Move 1167 | 38 330 223 253 37 93 193 . Hop . | . . . . . . . . Pick Up 33 | 2 21 . 5 1 . 4 . Fast Attach 13 | 6 5 . . . 2 . . Attach 9 | . . . . . 4 5 . Detach . | . . . . . . . . Swap 10 | . 2 . 3 . 1 4 . Drop 16 | . 14 . 2 . . . . Fire 80 | . 37 3 . . 9 31 . Melee . | . . . . . . . . Ram . | . . . . . . . . Kick . | . . . . . . . . Crush 2 | . . . . . 2 . . Escape Stasis . | . . . . . . . . Rewire . | . . . . . . . . Trap . | . . . . . . . . Miscellaneous . | . . . . . . . . Route ------- -11/Scrapyard -10/Materials (discovered 3 exits: [*Mat x2] / [*Min]) -10/Mines (discovered 3 exits: [*Mat x2] / *Exi) -10/Exiles -9/Mines -8/Materials (discovered 2 exits: Fac / Gar) -8/Garrison -7/Factory History --------- Turn | Location | Event 46 | -11/Scrapyard | Discovered new exit (range 15) 71 | -11/Scrapyard | Entered Materials 72 | -10/Materials | Met a group of wandering Federalists 304 | -10/Materials | Build established: Mutant 385 | -10/Materials | Discovered new exit (range 9) 624 | -10/Materials | Discovered new exit (range 16) 738 | -10/Materials | Discovered new exit (range 16) 772 | -10/Materials | Entered Mines 779 | -10/Mines | Met a Derelict bent on vengeance 784 | -10/Mines | Assisted by bots powering up and referring to "LRC-V3" 806 | -10/Mines | Discovered new exit (range 7) 908 | -10/Mines | Found a hidden stash of uninstalled traps 1049 | -10/Mines | Discovered new exit (range 3) 1071 | -10/Mines | Learned location of 1 exit from Materials 1132 | -10/Mines | Deemed a non-threat by the Exiles lab entrance 1132 | -10/Mines | Discovered new exit (range 5) 1141 | -10/Mines | Entered Exiles 1141 | -10/Exiles | Accompanied by 3 allies 1178 | -10/Exiles | Met 8R-AWN 1209 | -10/Exiles | Met EX-HEX 1257 | -10/Exiles | Met EX-BIN 1277 | -10/Exiles | Aligned with FarCom system 1279 | -10/Exiles | Given EX-Vault access code 1319 | -10/Exiles | Opened EX-Vault 1336 | -10/Exiles | Found Modified TNC 1344 | -10/Exiles | Found Gui. Plasma Cannon 1355 | -10/Exiles | Found Firepult 1426 | -10/Exiles | Warned to stay clear of 0b10 Research branches 1522 | -10/Exiles | Met EX-DEC 1535 | -10/Exiles | Learned location of Zion (-7) 1741 | -10/Exiles | Discovered new exit (range 11) 1774 | -10/Exiles | Stole three prototypes: Modified TNC, Gui. Plasma Cannon, Firepult 1774 | -10/Exiles | Entered Mines 1774 | -9/Mines | Accompanied by 3 allies 1845 | -9/Mines | Received a Rocket Launcher from a helpful Derelict 1868 | -9/Mines | Discovered new exit (range 8) 1894 | -9/Mines | Entered Materials 1894 | -8/Materials | Accompanied by 3 allies 1894 | -8/Materials | Evolved 4 slots: Propulsion x2, Utility x1, Weapon x1 1895 | -8/Materials | Identified exit to Factory 2119 | -8/Materials | Garrison activated, responded to threat 2160 | -8/Materials | Lost 3 allies 2177 | -8/Materials | Identified exit to Garrison 2177 | -8/Materials | Entered Garrison 2203 | -8/Garrison | Lost 3 parts (2n1w) 2209 | -8/Garrison | Build established: Scavenger-Skirmisher 2231 | -8/Garrison | Triggered checkpoint 2523 | -8/Garrison | Triggered checkpoint 2598 | -8/Garrison | Lost 4 parts (2n2w) 2611 | -8/Garrison | Triggered checkpoint 2760 | -8/Garrison | Discovered exit to Factory (range 12) 2849 | -8/Garrison | Triggered checkpoint 2876 | -8/Garrison | Entered Factory 2876 | -7/Factory | Evolved 2 slots: Propulsion x2 2876 | -7/Factory | Self-destructed Last Messages --------------- 02579_ The unstable cave ceiling collapses. 02611_ Beams of light sweep through the air. An alarm sounds. 02616_ The unstable cave ceiling collapses. 02617_ G-47 Trooper destroyed. 02618_ Imp. Ion Engine destroyed. 02618_ Critical hit (Burn: +37). 02620_ G-47 Trooper destroyed. 02625_ The unstable cave ceiling collapses. 02648_ Acquired 10 matter. 02664_ Acquired 11 matter. 02687_ The unstable cave ceiling collapses. 02760_ EXIT=FOUND: FACTORY 02849_ Beams of light sweep through the air. An alarm sounds. 02849_ Critical hit (Burn: +37). PARAMETERS=PROPULSION+2 LOCATION=FACTORY GOAL=ESCAPE 02876_ Receiving FarCom transmissions... Map ----- +----------------------------------------------------+ | ???????????????????????????????????????? | | ???????????????????????????????????????? | | ???????????????????????????????????????? | | ???????????????????????????????????????? | | ???????????????????????????????????????? | | ???????????????????????????????????????? | | ???????????????????????????????????????? | | ???????????????????????????????????????? | | ???????????????????????????????????????? | | ???????????????????????????????????????? | | ???????????????????????????????????????? | | ??????????????????????????Y????????????? | | ???????????????????????????????????????? | | ???????????????????????????????????????? | | ???????????????????????????????????????? | | ???????????????????????????????????????? | | ???????????????????????????????????????? | | ???????????????????????????????????????? | | ???????????????????????????????????????? | | ???????????????????????????????????????? | | ???????????????????????????????????????? | | ???????????????????????????????????????? | | ????????????####+####??????????????????? | | ????????????# #??????????????????? | | ????????????# #??????????????????? | | ????????????# @ #??????????????????? | | ????????????# #??????????????????? | | ????????????# ???????????????? | | ????????????# ????????????? | | ????????????# ?????????? | | ???????????? ??????????? | | ??????????? ??????????? | | ??????????? """ ??????????? | | ?????????? ""????????????? | | ????????? ""????????????? | | ?????????### ######### ?????????????? | | ???????????# ????????? ""????????????? | | ???????????# ?????????? ??????????????? | | ???????????# ??????????????????????????? | | ???????????#???????????????????????????? | | ???????????????????????????????????????? | | ???????????????????????????????????????? | | ???????????????????????????????????????? | | ???????????????????????????????????????? | | ???????????????????????????????????????? | | ???????????????????????????????????????? | | ???????????????????????????????????????? | | ???????????????????????????????????????? | | ???????????????????????????????????????? | | ???????????????????????????????????????? | +----------------------------------------------------+ Best States ------------- Heat Dissipation 45 Energy Generation 12 Energy Capacity 265 Matter Stores 300 Matter Capacity 300 Sight Range 16 Terrain Scan Density 10 Armor Coverage 150 Evasion (%) 40 Recoil Reduction 4 Item Schematics ----------------- Cargo Storage Unit | -10/Materials | Hacked Robot Schematics ------------------ None Fabricated ------------ Nothing Repaired ---------- Nothing Studied --------- None Alien Tech Used ----------------- None Achievements -------------- None Challenges ------------ None Game ------ Seed JunkEtherialProjector Manual? 0 Play Time 00:11:03 Cumulative 509.8 hours Start 2026.07.28 @ 22:03:06 End 2026.07.28 @ 22:15:17 Sessions 1 Manual Loads 0 Difficulty Rogue Special Mode None Game No. 453 Rogue 453 Adventurer 0 Explorer 0 Win Type - Total 13 Types 7/0/3/1/0/0/0/1/0/1 Lore% 63 Gallery% 70 Achievement% 67 Wizard Run 0 Options --------- Layout 1 ASCII 0 Keyboard 0 Movement Mouse Keybinds 0 Fullscreen 2 Font 24/Cog Map View 50x35 Zoom Use 47% Tactical HUD 1 Map Filters NONE Filters NONE Steam 1 RUN: efddc735-fbf7-415f-ad2f-18289f4db156